{"text_format":"3","workbook":"xlsx","n_sheets":1,"sheets":["30042021"],"not_rendered":{"defined_names":2},"read":"whole","date_system":"1900"}

{"sheet":"30042021","index":0,"n_rows":79,"n_cols":9,"rows_kept":79}
["DISTRICT","NAME OF COMMUNITY LEARNING CENTRE","PHYSICAL ADDRESS","NAME OF THE SATELLITE","PHYSICAL ADDRESS","NO. OF CLASSROOMS","COMMUNITY HALL","OFFICE","SQUARE METERS"]
["Frances Baard","Helen Joseph CLC  ","14 LatlhiMabilo, John Daka, Galeshewe, Kimberley, 8345","Helen Joseph CLC  ","14 LatlhiMabilo, John Daka, Galeshewe, Kimberley, 8345",2,0,1,{"$f":"SUM(F2:H2*64)","v":192}]
["Frances Baard","Helen Joseph CLC  ",null,"Galeshewe","Boitshoko Primary School, 179, Methodist Street, Galeshewe",4,0,1,{"$f":"SUM(F3:H3*64)","v":320}]
["Frances Baard","Helen Joseph CLC  ",null,"Greenpoint","Greenpoint Primary School, 73, Dutch Reform Road, Greenpoint, Kimberley 8301",1,0,0,{"$f":"SUM(F4:H4*64)","v":64}]
["Frances Baard","Helen Joseph CLC  ",null,"Home Lite","Tlhomelang High School, 8807, Kesiamang Street, Galeshewe 8345",4,0,0,{"$f":"SUM(F5:H5*64)","v":256}]
["Frances Baard","Helen Joseph CLC  ",null,"Dr EP Lekhela","1913 Boitumelo Specvial school,John Daka road,Phuthanang location ,kimberly 8345",2,0,0,{"$f":"SUM(F6:H6*64)","v":128}]
["Frances Baard","Helen Joseph CLC  ",null,"Letshego","Letshego Primary School, Moshe Kantani Street, Redirile Location, Kimberley 8345",2,0,0,{"$f":"SUM(F7:H7*64)","v":128}]
["Frances Baard","Helen Joseph CLC  ",null,"Pescodia","Pescodia Primary School, 21, Swallow Street, Pescodia,  Roodepan",1,0,0,{"$f":"SUM(F8:H8*64)","v":64}]
["Frances Baard","Helen Joseph CLC  ",null,"Platfontein","!Xunkwesa Combined School, Martin Dumba Street, Platfontein 8301",2,0,0,{"$f":"SUM(F9:H9*64)","v":128}]
["Frances Baard","Helen Joseph CLC  ",null,"Ritchie","Rietrivier Primary School, Mercury Street, Rietvale",3,0,0,{"$f":"SUM(F10:H10*64)","v":192}]
["Frances Baard","Helen Joseph CLC  ",null,"Thusong","Thusong Children Centre, 11, Merriman Street, De Beers, Kimberley 8301",1,0,0,{"$f":"SUM(F11:H11*64)","v":64}]
["Frances Baard","Helen Joseph CLC  ",null,"Thutong","St. Boniface Church, 35B,Corless Road, Galeshewe",2,0,0,{"$f":"SUM(F12:H12*64)","v":128}]
["Frances Baard","Helen Joseph CLC  ",null,"Rooikoppies","3372 Methodist Church Mataleng Location,Barkley West,8376",1,0,0,{"$f":"SUM(F13:H13*64)","v":64}]
["Frances Baard","Helen Joseph CLC  ",null,"De Beershoogte","De Beershoogte Lower Primary, 1435, Iris Street, Barkly West,  De Beershoogte Location",2,0,0,{"$f":"SUM(F14:H14*64)","v":128}]
["Frances Baard","Helen Joseph CLC  ",null,"Stillwater","Lower Primary, 40 Phelindaba Stillwarer, Barkley West 8505",2,0,0,{"$f":"SUM(F15:H15*64)","v":128}]
["Frances Baard","Helen Joseph CLC  ",null,"Reakantswe","High School 251 Mothibi Str Windston 8510",2,0,0,{"$f":"SUM(F16:H16*64)","v":128}]
["Frances Baard","Helen Joseph CLC  ",null,"Dikgatlong","Dikgatlong High School, 1498, Louw Street, Tidimalo location, Delportshope",1,0,0,{"$f":"SUM(F17:H17*64)","v":64}]
["Frances Baard","Helen Joseph CLC  ",null,"Longlands","Community Building, 1910,Newstand, Longlands8376",2,0,0,{"$f":"SUM(F18:H18*64)","v":128}]
["Frances Baard","Helen Joseph CLC  ",null,"Mataleng","Mataleng High School ,723, Soyiswapi Street, Mataleng Location, Barkley West 8375",2,0,0,{"$f":"SUM(F19:H19*64)","v":128}]
["Frances Baard","Itlhatloseng CLC","Kgono Primary School, 2733 Shanty street, Pampierstad","Itlhatloseng CLC","Warrenton Primary School, Struwig Street, Warrenton, 8530",0,0,1,{"$f":"SUM(F20:H20*64)","v":64}]
["Frances Baard","Itlhatloseng CLC",null,"Andalusia","Vaalharts Combined School, 6, Jakaranda Street, Andalusia Park, Jan Kempdorp.",1,0,0,{"$f":"SUM(F21:H21*64)","v":64}]
["Frances Baard","Itlhatloseng CLC",null,"Gaegolelwe","Valspan Intermediate School, 1275, Cwaile Street,  Jan Kempdorp",4,0,0,{"$f":"SUM(F22:H22*64)","v":256}]
["Frances Baard","Itlhatloseng CLC",null,"Mphatlholola","Magogong village.Reaipela primary school",2,0,0,{"$f":"SUM(F23:H23*64)","v":128}]
["Frances Baard","Itlhatloseng CLC",null,"Rolihlahla","Rolihlala Primary School, 183, Lesabe Street, Warrenton",1,0,0,{"$f":"SUM(F24:H24*64)","v":64}]
["Frances Baard","Itlhatloseng CLC",null,"Thanya","CW Kies Primary School, 984, Petunia Road, Bonitapark, Hartswater   ",2,0,0,{"$f":"SUM(F25:H25*64)","v":128}]
["Frances Baard","Itlhatloseng CLC",null,"Thuto E Tsile","Warrenton Combine School,  04 Molefe street,Ikhutseng  Warrenton ",2,0,0,{"$f":"SUM(F26:H26*64)","v":128}]
["Frances Baard","Itlhatloseng CLC",null,"Hartswater","Laerskool Hartswater,Jan Viljoenstraat, Hartwater",1,0,0,{"$f":"SUM(F27:H27*64)","v":64}]
["Frances Baard","Itlhatloseng CLC",null,"Warrenvale","Warrenvale Combined School, 34 Eerste Street, Warrenton ",1,0,0,{"$f":"SUM(F28:H28*64)","v":64}]
["John Taolo Gaetsewe","Mecwi CLC","Tsineng Primary School,431 TsinengVillage,  Kuruman  8460","Mecwi CLC","Mewci Community Learning Centre , Tsineng Village, Kuruman, 8460",4,0,0,{"$f":"SUM(F29:H29*64)","v":256}]
["John Taolo Gaetsewe","Mecwi CLC",null,"Deben","Deben Primary School,529  New Stands, Deben",2,0,0,{"$f":"SUM(F30:H30*64)","v":128}]
["John Taolo Gaetsewe","Mecwi CLC",null,"Hotazel","Hotazel Combined School, Hotazel Village",2,0,0,{"$f":"SUM(F31:H31*64)","v":128}]
["John Taolo Gaetsewe","Mecwi CLC",null,"Thuto ke lesedi","Ncweng  Primary School,Ncweng village",2,0,0,{"$f":"SUM(F32:H32*64)","v":128}]
["John Taolo Gaetsewe","Mecwi CLC",null,"Kodomelang","Bosheng Intermediate school,Loopeng village",2,0,0,{"$f":"SUM(F33:H33*64)","v":128}]
["John Taolo Gaetsewe","Mecwi CLC",null,"Letlhabile","Galotlhare Primary Sschool",2,0,0,{"$f":"SUM(F34:H34*64)","v":128}]
["John Taolo Gaetsewe","Mecwi CLC",null,"Reatswelela","Shalana  Primary School,shallaneng village",2,0,0,{"$f":"SUM(F35:H35*64)","v":128}]
["John Taolo Gaetsewe","Thuto-Boswa CLC","Mothibistad Complex, Tlhabane Road,Mothibistad 8474","Thuto-Boswa CLC","Mothibistad Complex, Shop 06 Tlhabane Road,Mothibistad 8474",2,0,1,{"$f":"SUM(F36:H36*64)","v":192}]
["John Taolo Gaetsewe","Thuto-Boswa CLC",null,"Itsotsoropeng","Gamohana Intermediate School,Maruping Village, Mothibistad 8474",1,0,0,{"$f":"SUM(F37:H37*64)","v":64}]
["John Taolo Gaetsewe","Thuto-Boswa CLC",null,"Phuthadichaba","Maikalelo Primary School,351 Toto Street,Oliefanshoek",1,0,0,{"$f":"SUM(F38:H38*64)","v":64}]
["John Taolo Gaetsewe","Thuto-Boswa CLC",null,"Reaipela","Bankhara Bodulong itermediate school,157 Dipico street,Bankhara Bodulong",2,0,0,{"$f":"SUM(F39:H39*64)","v":128}]
["John Taolo Gaetsewe","Thuto-Boswa CLC",null,"Welgelee","Noord Kaap Primary School,1987,Industrial Road, Welgelee, Olifantshoek",1,0,0,{"$f":"SUM(F40:H40*64)","v":64}]
["John Taolo Gaetsewe","Thuto-Boswa CLC",null,"Wrenchville","Wrenchville primarcy school",1,0,0,{"$f":"SUM(F41:H41*64)","v":64}]
["John Taolo Gaetsewe","Thuto-Boswa CLC",null,"Kathu","Traffic department,ian street,kathu 8446",1,0,0,{"$f":"SUM(F42:H42*64)","v":64}]
["John Taolo Gaetsewe","Thuto-Boswa CLC",null,"Mmonesi","Bosele secondary school,mothistad,Manyeding village",1,0,0,{"$f":"SUM(F43:H43*64)","v":64}]
["John Taolo Gaetsewe","Thuto-Boswa CLC",null,"Ithlarabologelo","Ga-Sebebonwe Janky Middle School ,Ntswelengwe",2,0,0,{"$f":"SUM(F44:H44*64)","v":128}]
["John Taolo Gaetsewe","Thuto-Boswa CLC",null,"Mmatlasedi","Omang Primary School,Dithakong Village",2,0,0,{"$f":"SUM(F45:H45*64)","v":128}]
["John Taolo Gaetsewe","Thuto-Boswa CLC",null,"Tshedimosetso","Makgolokwe Middle School, Batlharos Village, Takeng Section, Kuruman 8460   ",1,0,0,{"$f":"SUM(F46:H46*64)","v":64}]
["Namakwa","People's Public CLC","Concordia Primary School, 565,Kokerboom Street, Concordia 8271","People's Public CLC","Concordia Primary School, 565,Kokerboom Street, Concordia 8271",0,0,1,{"$f":"SUM(F47:H47*64)","v":64}]
["Namakwa","People's Public CLC",null,"Bergsig","Dr.Izak van Niekerk Primary, School Street, Bergsig 8240",6,0,0,{"$f":"SUM(F48:H48*64)","v":384}]
["Namakwa","People's Public CLC",null,"Nababeep","Nababeep High School, 220, Rugby Street,Nababeep 8265",2,0,0,{"$f":"SUM(F49:H49*64)","v":128}]
["Namakwa","People's Public CLC",null,"Brandvlei","Cristaan St,Brandvlei 8915",1,0,0,{"$f":"SUM(F50:H50*64)","v":64}]
["Namakwa","People's Public CLC",null,"Kharkams","1 School Street Kharkamas ,Garamas",1,0,0,{"$f":"SUM(F51:H51*64)","v":64}]
["Namakwa","People's Public CLC",null,"Pofadder","Francois Visser Primary School, Banhoff Street, Pofadder",1,0,0,{"$f":"SUM(F52:H52*64)","v":64}]
["Namakwa","People's Public CLC",null,"Steinkopf","Ferdinand Brecher Primary School, 60, Brencherweg,Steinkopf",2,0,0,{"$f":"SUM(F53:H53*64)","v":128}]
["Namakwa","People's Public CLC",null,"Calvinia","Hantam Primary School, 867, Le Roux Street, Calvinia 8190",1,0,0,{"$f":"SUM(F54:H54*64)","v":64}]
["Namakwa","People's Public CLC",null,"Sutherland","Sutherland High School, Muller Street, Sutherland 6920",2,0,0,{"$f":"SUM(F55:H55*64)","v":128}]
["Namakwa","People's Public CLC",null,"Port Nolloth","Port Nolloth High School,51, First Street, Port Nolloth 8280",1,0,0,{"$f":"SUM(F56:H56*64)","v":64}]
["Pixley Ka Seme","Kareeville CLC","Kareeville Primary School, Seder Street, De Aar","Kareeville CLC","Kareeville Primary School, Seder Street, De Aar",4,0,0,{"$f":"SUM(F57:H57*64)","v":256}]
["Pixley Ka Seme","Kareeville CLC",null,"Mziwabantu","luvuyo combine school , luvuyo street and hoof Britstown",1,0,0,{"$f":"SUM(F58:H58*64)","v":64}]
["Pixley Ka Seme","Kareeville CLC",null,"Griekwastad Combine","10 Phillip St.",1,0,0,{"$f":"SUM(F59:H59*64)","v":64}]
["Pixley Ka Seme","Kareeville CLC",null,"Protea","Cnr Lantana & Protea Str",1,0,0,{"$f":"SUM(F60:H60*64)","v":64}]
["Pixley Ka Seme","Kareeville CLC",null,"Nonzwakazi","Emthanjeni  Primary School, Street 8, De Aar",1,0,0,{"$f":"SUM(F61:H61*64)","v":64}]
["Pixley Ka Seme","Kareeville CLC",null,"Ikhwezi Lomso","S.S Madikane Primary School, Main Road Street, Colesberg 9597",2,0,0,{"$f":"SUM(F62:H62*64)","v":128}]
["Pixley Ka Seme","Kareeville CLC",null,"Nomathemba","Norvalspont Intermediate School, 01, Mandela Street,Norvalspont 9797",2,0,0,{"$f":"SUM(F63:H63*64)","v":128}]
["Pixley Ka Seme","Kareeville CLC",null,"Noupoort","Ikwezilokusa Primary School, 05, Gatsha Street, Noupoort 5950",2,0,0,{"$f":"SUM(F64:H64*64)","v":128}]
["Pixley Ka Seme","Kareeville CLC",null,"Sabelo Hanover","Hanover primary School, 1, Plato Street, Hanover 7005",2,0,0,{"$f":"SUM(F65:H65*64)","v":128}]
["Pixley Ka Seme","Kareeville CLC",null,"Smitsdrift Batlhaping","BatlhapingPrimary School, Schmidtsdrift Sector 4",1,0,0,{"$f":"SUM(F66:H66*64)","v":64}]
["ZF MGCAWU","ZF Mgcawu  CLC","1210 Camp street,Kolomela training centre,Postmansburg 8420","ZF Mgcawu CLC","1210 Camp street,Kolomela training centre,Postmansburg 8420",7,0,3,{"$f":"SUM(F67:H67*64)","v":640}]
["ZF MGCAWU","ZF Mgcawu  CLC",null,"Learn For Life","Oranje Oewer Primary School, 34,Keimoes Road, Upington 8800",1,0,0,{"$f":"SUM(F68:H68*64)","v":64}]
["ZF MGCAWU","ZF Mgcawu  CLC",null,"Masakhane","Paballelo High School, 370, Gudula Street, Pabalello, Upington 8800 ",1,0,0,{"$f":"SUM(F69:H69*64)","v":64}]
["ZF MGCAWU","ZF Mgcawu  CLC",null,"Grootdink"," Grootdrink Primary School Skoolstraat 63 ,GROOTDRINK 8822",1,0,0,{"$f":"SUM(F70:H70*64)","v":64}]
["ZF MGCAWU","ZF Mgcawu  CLC",null,"Strewe Na Sukses","Old Oranjezicht Hostel Building, 1122, Loopstraat, Keimoes 8860",1,0,0,{"$f":"SUM(F71:H71*64)","v":64}]
["ZF MGCAWU","ZF Mgcawu  CLC",null,"Sternham","1 Sonneblom St, Groblershoop,8850, Posbus24 Groblershoop,8850",1,0,0,{"$f":"SUM(F72:H72*64)","v":64}]
["ZF MGCAWU","ZF Mgcawu  CLC",null,"Kantika","1 Ratanang St, P.O Box 3008, Postmansburg",1,0,0,{"$f":"SUM(F73:H73*64)","v":64}]
["ZF MGCAWU","ZF Mgcawu  CLC",null,"Gariepwater"," Gariepwater Primary Skoolstraat 272, UPINGTON 8800 ",1,0,0,{"$f":"SUM(F74:H74*64)","v":64}]
["ZF MGCAWU","ZF Mgcawu  CLC",null,"Prestige","Nousberg St,P.O.Box 2873,Upinton 8870",1,0,0,{"$f":"SUM(F75:H75*64)","v":64}]
["ZF MGCAWU","ZF Mgcawu  CLC",null,"Groenwater","Refentse Primary School",1,0,0,{"$f":"SUM(F76:H76*64)","v":64}]
["ZF MGCAWU","ZF Mgcawu  CLC",null,"Sunrise","1642 Rand Str,Kakamas, P.O Box 450 Kakamas 8870",2,0,0,{"$f":"SUM(F77:H77*64)","v":128}]
["ZF MGCAWU","ZF Mgcawu  CLC",null,"Danielskul","Danielskuil Combined Intermediate School,8, Nkwe Street,Danielskuil 8405 ",1,0,0,{"$f":"SUM(F78:H78*64)","v":64}]
["ZF MGCAWU","ZF Mgcawu  CLC",null,"Lamberechtsdrift","Grootdrink Primary School, 63, Skoolstraat, Grootdrink 8822",1,0,0,{"$f":"SUM(F79:H79*64)","v":64}]